fUSD/lending_fUSD_20260408
["ID","MTS","AMOUNT","RATE_DAILY","PERIOD"]
[420041009,1775629851464,-150.0,0.00017158,2]
[420041010,1775629851476,-150.0,0.00017161,2]
[420041011,1775629851487,-150.0,0.00017176,2]
[420041012,1775629851500,-150.0,0.00017185,2]
[420041013,1775629851511,-150.0,0.00017193,2]
[420041014,1775629851522,-150.0,0.000172,2]
[420041015,1775629851532,-150.0,0.00017205,2]
[420041016,1775629851541,-786.02,0.00017211,2]
[420041017,1775629851551,-150.0,0.00017222,2]
[420041018,1775629851561,-150.0,0.00017225,2]
[420041019,1775629851574,-150.0,0.0001723,2]
[420041020,1775629851585,-150.0,0.00017247,2]
[420041021,1775629851696,-150.0,0.00017251,2]
[420041022,1775629851745,-150.0,0.00017252,2]
[420041023,1775629851755,-150.0,0.00017268,2]
[420041024,1775629851765,-150.0,0.00017268,2]
[420041025,1775629851774,-150.0,0.00017268,2]
[420041026,1775629851785,-150.0,0.00017268,2]
[420041027,1775629851795,-150.0,0.00017268,2]
[420041028,1775629851806,-150.0,0.00017268,2]
[420041029,1775629851816,-150.0,0.00017289,2]
[420041030,1775629851827,-150.0,0.00017299,2]
[420041031,1775629851838,-150.0,0.00017302,2]
[420041032,1775629851848,-150.0,0.00017305,2]
[420041033,1775629851858,-150.0,0.00017309,2]
[420041034,1775629851868,-150.0,0.00017313,2]
[420041035,1775629851879,-150.0,0.00017342,2]
[420041036,1775629851889,-150.0,0.00017346,2]
[420041037,1775629851899,-150.0,0.00017353,2]
[420041038,1775629851910,-150.0,0.00017353,2]
[420041039,1775629851920,-150.0,0.00017359,2]
[420041040,1775629851930,-150.0,0.0001737,2]
[420041041,1775629851940,-2000.0,0.00017379,2]
[420041042,1775629851949,-150.0,0.00017379,2]
[420041043,1775629851959,-150.0,0.00017387,2]
[420041044,1775629851969,-194.72792766,0.00017389,2]
[420041045,1775629851979,-200.0,0.00017389,2]
[420041046,1775629851989,-1328.27659266,0.00017389,2]
[420041047,1775629851999,-799.54513345,0.00017389,2]
[420041048,1775629852009,-187.78006525,0.00017389,2]
[420041049,1775629852019,-985.91,0.00017392,2]
[420041050,1775629852028,-150.0,0.00017393,2]
[420041051,1775629852038,-150.0,0.00017404,2]
[420041052,1775629852049,-150.0,0.00017405,2]
[420041053,1775629852059,-150.0,0.00017416,2]
[420041054,1775629852069,-150.0,0.00017416,2]
[420041055,1775629852080,-150.0,0.00017432,2]
[420041056,1775629852090,-150.0,0.0001744,2]
[420041057,1775629852099,-150.0,0.00017451,2]
[420041058,1775629852109,-150.0,0.00017454,2]
[420041059,1775629852119,-150.0,0.00017455,2]
[420041060,1775629852128,-150.0,0.00017466,2]
[420041061,1775629852139,-150.0,0.00017466,2]
[420041062,1775629852149,-150.0,0.0001748,2]
[420041063,1775629852158,-766.01,0.00017485,2]
[420041064,1775629852168,-150.0,0.00017487,2]
[420041065,1775629852178,-150.0,0.00017491,2]
[420041066,1775629852189,-150.0,0.00017493,2]
[420041067,1775629852199,-150.0,0.00017497,2]
[420041068,1775629852209,-150.0,0.00017506,2]
[420041069,1775629852220,-150.0,0.00017506,2]
[420041070,1775629852230,-2812.0,0.00017521,2]
[420041071,1775629852241,-150.0,0.00017528,2]
[420041072,1775629852251,-150.0,0.00017534,2]
[420041073,1775629852261,-150.0,0.00017542,2]
[420041074,1775629852271,-150.0,0.00017544,2]
[420041075,1775629852281,-150.0,0.00017555,2]
[420041076,1775629852292,-150.0,0.00017557,2]
[420041077,1775629852303,-150.0,0.00017565,2]
[420041078,1775629852312,-150.0,0.00017581,2]
[420041079,1775629852323,-150.0,0.00017588,2]
[420041080,1775629852333,-275.9341,0.000176,2]
[420041081,1775629852343,-150.0,0.00017603,2]
[420041082,1775629852354,-150.0,0.00017608,2]
[420041083,1775629852364,-150.0,0.00017608,2]
[420041084,1775629852374,-150.0,0.00017617,2]
[420041085,1775629852384,-150.0,0.00017625,2]
[420041086,1775629852394,-150.0,0.00017628,2]
[420041087,1775629852403,-150.0,0.00017634,2]
[420041088,1775629852413,-150.0,0.0001764,2]
[420041089,1775629852424,-150.0,0.00017659,2]
[420041090,1775629852434,-150.0,0.00017665,2]
[420041091,1775629852446,-150.0,0.00017665,2]
[420041092,1775629852457,-987.75,0.00017666,2]
[420041093,1775629852467,-150.0,0.00017672,2]
[420041094,1775629852477,-150.0,0.00017675,2]
[420041095,1775629852487,-150.0,0.00017677,2]
[420041096,1775629852497,-150.0,0.00017678,2]
[420041097,1775629852507,-150.0,0.0001768,2]
[420041098,1775629852518,-150.0,0.0001771,2]
[420041099,1775629852528,-160.0,0.00017714,2]
[420041100,1775629852538,-150.0,0.00017714,2]
[420041101,1775629852548,-150.0,0.00017722,2]
[420041102,1775629852558,-150.0,0.00017726,2]
[420041103,1775629852567,-412.44,0.00017728,2]
[420041104,1775629852578,-3349.54,0.00017728,2]
[420041105,1775629852588,-720.37,0.00017728,2]
[420041106,1775629852598,-2023.17,0.00017728,2]
[420041107,1775629852607,-371.0,0.00017733,2]
[420041108,1775629852617,-150.0,0.00017735,2]
[420041109,1775629852626,-150.0,0.0001774,2]
[420041110,1775629852636,-150.0,0.00017744,2]
[420041111,1775629852646,-150.0,0.00017751,2]
[420041112,1775629852656,-150.0,0.00017761,2]
[420041113,1775629852665,-150.0,0.00017769,2]
[420041114,1775629852675,-150.0,0.00017771,2]
[420041115,1775629852685,-150.0,0.00017789,2]
[420041116,1775629852694,-150.0,0.00017799,2]
[420041117,1775629852703,-150.0,0.00017801,2]
[420041118,1775629852713,-150.0,0.00017812,2]
[420041119,1775629852723,-150.0,0.00017816,2]
[420041120,1775629852733,-150.0,0.00017817,2]
[420041121,1775629852743,-150.0,0.00017826,2]
[420041122,1775629852752,-163.54373564,0.00017863,2]
[420041123,1775629852761,-277.86809384,0.00017863,2]
[420041124,1775629852771,-202.16587278,0.00017863,2]
[420041125,1775629852781,-264.00494396,0.00017863,2]
[420041126,1775629852790,-299.8368581,0.00017863,2]
[420041127,1775629852800,-257.21753866,0.00017863,2]
[420041128,1775629852809,-235.51154759,0.00017863,2]
[420041129,1775629852820,-262.25985033,0.00017863,2]
[420041130,1775629852830,-154.96470644,0.00017863,2]
[420041131,1775629852840,-213.91542621,0.00017863,2]
[420041132,1775629852850,-267.96405061,0.00017863,2]
[420041133,1775629852859,-160.91577892,0.00017863,2]
[420041134,1775629852870,-507.0,0.00017879,6]
[420041135,1775629852880,-1537.0,0.00017936,2]
[420041136,1775629852889,-319.09041194,0.00017937,2]
[420041137,1775629852900,-200.0,0.00017937,2]
[420041138,1775629852909,-1377.42282659,0.00017937,2]
[420041139,1775629852919,-829.12830338,0.00017937,2]
[420041140,1775629852928,-194.72792766,0.00017937,2]
[420041141,1775629852938,-2202.78,0.00018024,2]
[420041142,1775629852947,-3620.0,0.00018058,2]
[420041143,1775629852956,-2812.0,0.00018161,2]
[420041144,1775629852966,-2812.0,0.00018161,2]
[420041145,1775629852976,-9035.0,0.00018245,2]
[420041146,1775629852986,-3542.414,0.00018368,2]
[420041147,1775629852995,-1053.585,0.00018368,2]
[420041148,1775629853005,-200.0,0.00018485,2]
[420041149,1775629853015,-1428.38747117,0.00018485,2]
[420041150,1775629853024,-607.52605788,0.00018485,2]
[420041151,1775629853034,-201.93286099,0.00018485,2]
[420041152,1775629853044,-166.1737474,0.00018854,2]
[420041153,1775629853054,-571.119653,0.00018888,2]
[420041154,1775629853064,-239.985767,0.00018896,2]
[420041155,1775629853074,-311.7083,0.000189,2]
[420041156,1775629853085,-277.201,0.00018908,2]
[420041157,1775629853095,-1264.0,0.00018908,2]
[420041158,1775629853104,-926.0,0.00018908,2]
[420041159,1775629853115,-1217.0,0.00018908,2]
[420041160,1775629853126,-622.539096,0.00018999,7]
[420041161,1775629853136,-1000.0,0.00018999,2]
[420041162,1775629853145,-599.60298507,0.00019032,2]
[420041163,1775629853156,-646.65982734,0.00019032,2]
[420041164,1775629853166,-200.0,0.00019033,2]
[420041165,1775629853176,-1481.23780761,0.00019033,2]
[420041166,1775629853186,-209.40437684,0.00019033,2]
[420041167,1775629853195,-507.0,0.00019073,7]
[420041168,1775629853205,-854.33941891,0.00019104,2]
[420041169,1775629853215,-3404.31588381,0.00019104,2]
[420041170,1775629853225,-154.58,0.00019178,2]
[420041171,1775629853235,-500.0,0.00019205,2]
[420041172,1775629853246,-178.99,0.00019273,2]
[420041173,1775629853256,-56470.0,0.000194,2]
[420041174,1775629853265,-697.34512114,0.0001949,2]
[420041175,1775629853275,-542.786953,0.00019529,2]
[420041176,1775629853286,-200.0,0.00019581,2]
[420041177,1775629853297,-1536.04360649,0.00019581,2]
[420041178,1775629853307,-217.15233878,0.00019581,2]
[420041179,1775629853317,-1399.628384,0.000196,7]
[420041180,1775629853328,-921.09301,0.000196,2]
[420041181,1775629853339,-174.011551,0.000196,7]
[420041182,1775629853349,-920.120633,0.000196,2]
[420041183,1775629853358,-631.057193,0.000196,7]
[420041184,1775629853368,-178.99,0.00019692,2]
[420041185,1775629853378,-1838.18,0.00019764,2]
[420041186,1775629853388,-5533.0,0.000198,3]
[420041187,1775629853398,-1282.0,0.00019831,2]
[420041188,1775629853409,-1040.944555,0.00019946,2]
[420041189,1775629853419,-526.80871465,0.0002,2]
[420041190,1775629853430,-1000.0,0.0002,7]
[420041191,1775629853439,-825.0,0.0002,30]
[420041192,1775629853449,-2006.0,0.00020065,2]
[420041193,1775629853459,-12649.0,0.0002007,2]
[420041194,1775629853469,-2006.0,0.00020103,2]
[420041195,1775629853479,-2006.0,0.00020111,2]
[420041196,1775629853489,-200.0,0.00020129,2]
[420041197,1775629853499,-225.18697532,0.00020129,2]
[420041198,1775629853510,-912.11,0.0002015,2]
[420041199,1775629853520,-1472.55,0.0002015,2]
[420041200,1775629853530,-545.66,0.0002015,2]
[420041201,1775629853540,-2000.0,0.00020181,2]
[420041202,1775629853551,-2202.78,0.00020187,2]
[420041203,1775629853561,-564.66,0.00020209,2]
[420041204,1775629853572,-2006.0,0.0002025,2]
[420041205,1775629853582,-2006.0,0.00020258,2]
[420041206,1775629853592,-507.0,0.00020268,8]
[420041207,1775629853602,-352.1204,0.000203,2]
[420041208,1775629853612,-5533.0,0.000203,5]
[420041209,1775629853622,-2006.0,0.00020307,2]
[420041210,1775629853632,-250.0,0.00020307,2]
[420041211,1775629853642,-250.0,0.00020307,2]
[420041212,1775629853652,-250.0,0.00020307,2]
[420041213,1775629853663,-250.0,0.00020307,2]
[420041214,1775629853672,-250.0,0.00020307,2]
[420041215,1775629853681,-250.0,0.00020307,2]
[420041216,1775629853691,-250.0,0.00020307,2]
[420041217,1775629853701,-250.0,0.00020307,2]
[420041218,1775629853711,-156.0,0.00020307,2]
[420041219,1775629853721,-152.0,0.00020383,3]
[420041220,1775629853730,-2006.0,0.00020522,2]
[420041221,1775629853740,-208.85233043,0.00020526,8]
[420041222,1775629853749,-2006.0,0.00020579,2]
[420041223,1775629853759,-160.0,0.00020594,7]
[420041224,1775629853769,-1219.384442,0.00020594,7]
[420041225,1775629853779,-2278.768884,0.00020594,7]
[420041226,1775629853789,-2006.0,0.00020612,2]
[420041227,1775629853799,-2006.0,0.00020616,2]
[420041228,1775629853810,-2006.0,0.00020639,2]
[420041229,1775629853820,-201.2726407,0.00020677,2]
[420041230,1775629853831,-185.98971972,0.00020677,2]
[420041231,1775629853841,-2000.0,0.000207,2]
[420041232,1775629853851,-1428.37,0.00020754,2]
[420041233,1775629853860,-529.3,0.00020754,2]
[420041234,1775629853871,-2006.0,0.00020792,2]
[420041235,1775629853881,-2006.0,0.00020854,2]
[420041236,1775629854253,-2006.0,0.00020855,2]
[420041237,1775629854277,-5800.0,0.00020983,2]
[420041238,1775629854287,-5800.0,0.00020992,2]
[420041239,1775629854297,-5800.0,0.00021,2]
[420041240,1775629854307,-500.0,0.00021014,2]
[420041241,1775629854317,-2006.0,0.00021021,2]
[420041242,1775629854328,-2006.0,0.00021032,2]
[420041243,1775629854338,-2006.0,0.00021045,2]
[420041244,1775629854348,-2006.0,0.00021114,2]
[420041245,1775629854358,-2006.0,0.00021149,2]
[420041246,1775629854368,-500.0,0.000212,2]
[420041247,1775629854378,-1384.19,0.00021359,2]
[420041248,1775629854387,-3524.0,0.00021368,2]
[420041249,1775629854397,-1046.0,0.00021368,2]
[420041250,1775629854407,-2006.0,0.0002138,2]
[420041251,1775629854417,-2006.0,0.00021406,2]
[420041252,1775629854426,-2006.0,0.00021421,2]
[420041253,1775629854435,-507.0,0.00021463,9]
[420041254,1775629854445,-403.390414,0.00021478,7]
[420041255,1775629854454,-174.390384,0.00021478,2]
[420041256,1775629854464,-397.7718,0.000216,2]
[420041257,1775629854473,-2006.0,0.00021659,2]
[420041258,1775629854483,-1573.0,0.00021749,2]
[420041259,1775629854494,-1573.0,0.00021749,2]
[420041260,1775629854504,-621.78829552,0.00021771,2]
[420041261,1775629854514,-670.58624095,0.00021771,2]
[420041262,1775629854523,-2006.0,0.00021852,2]
[420041263,1775629854533,-2006.0,0.00021853,2]
[420041264,1775629854543,-150.0,0.00021908,2]
[420041265,1775629854553,-1264.0,0.00021908,2]
[420041266,1775629854563,-926.0,0.00021908,2]
[420041267,1775629854573,-1217.0,0.00021908,2]
[420041268,1775629854583,-5000.0,0.00021918,2]
[420041269,1775629854592,-500.0,0.00021918,2]
[420041270,1775629854603,-500.0,0.00021918,2]
[420041271,1775629854613,-500.0,0.00021918,2]
[420041272,1775629854622,-220.54357103,0.00021918,2]
[420041273,1775629854633,-150.0,0.00021918,2]
[420041274,1775629854642,-5800.0,0.00021918,2]
[420041275,1775629854652,-595.0,0.00022,2]
[420041276,1775629854661,-153.0,0.00022,2]
[420041277,1775629854671,-1037.0,0.00022,2]
[420041278,1775629854681,-4637.0,0.00022,2]
[420041279,1775629854691,-2944.0,0.00022,2]
[420041280,1775629854702,-1151.0,0.00022,2]
[420041281,1775629854712,-830.0,0.00022,2]
[420041282,1775629854722,-1209.0,0.00022,2]
[420041283,1775629854732,-543.52,0.00022,30]
[420041284,1775629854742,-854.33941891,0.00022036,2]
[420041285,1775629854752,-10476.0,0.00022077,2]
[420041286,1775629854762,-1340.02,0.00022165,7]
[420041287,1775629854772,-2202.78,0.0002235,2]
[420041288,1775629854781,-712.0,0.00022389,7]
[420041289,1775629854791,-415.0,0.00022389,7]
[420041290,1775629854801,-825.0,0.00022411,30]
[420041291,1775629854811,-245.189618,0.00022526,14]
[420041292,1775629854820,-244.431517,0.0002254,120]
[420041293,1775629854830,-1000.0,0.0002257,2]
[420041294,1775629854840,-507.0,0.00022657,10]
[420041295,1775629854850,-150.0,0.000229,30]
[420041296,1775629854859,-449.3419,0.000229,2]
[420041297,1775629854870,-2000.0,0.00022984,2]
[420041298,1775629854880,-595.0,0.00023,2]
[420041299,1775629854889,-153.0,0.00023,2]
[420041300,1775629854899,-1037.0,0.00023,2]
[420041301,1775629854909,-4637.0,0.00023,2]
[420041302,1775629854919,-300.0,0.00023,120]
[420041303,1775629854929,-2944.0,0.00023,2]
[420041304,1775629854939,-1151.0,0.00023,2]
[420041305,1775629854949,-830.0,0.00023,2]
[420041306,1775629854958,-160.0,0.00023,2]
[420041307,1775629854969,-160.0,0.00023,7]
[420041308,1775629854979,-1209.0,0.00023,2]
[420041309,1775629854988,-1295.84,0.00023172,7]
[420041310,1775629854998,-500.0,0.00023316,2]
[420041311,1775629855007,-686.05,0.00023316,2]
[420041312,1775629855018,-375.13,0.00023316,2]
[420041313,1775629855027,-1029.0,0.00023497,5]
[420041314,1775629855037,-822.0,0.00023497,5]
[420041315,1775629855047,-481.98,0.00023498,2]
[420041316,1775629855057,-456.895723,0.0002361,14]
[420041317,1775629855067,-191.988614,0.0002362,14]
[420041318,1775629855076,-498.031277,0.00023748,14]
[420041319,1775629855086,-1573.0,0.00023832,3]
[420041320,1775629855096,-507.0,0.00023852,11]
[420041321,1775629855106,-402.56716046,0.00023864,2]
[420041322,1775629855115,-481.98,0.0002389,2]
[420041323,1775629855125,-152.0,0.00023917,4]
[420041324,1775629855135,-1500.0,0.0002394,2]
[420041325,1775629855145,-477.15533545,0.00023947,2]
[420041326,1775629855155,-160.0,0.00024,7]
[420041327,1775629855164,-595.0,0.00024,2]
[420041328,1775629855174,-153.0,0.00024,2]
[420041329,1775629855184,-1037.0,0.00024,2]
[420041330,1775629855194,-4637.0,0.00024,2]
[420041331,1775629855204,-9999.2826198,0.00024,2]
[420041332,1775629855215,-2944.0,0.00024,2]
[420041333,1775629855224,-1151.0,0.00024,2]
[420041334,1775629855234,-830.0,0.00024,2]
[420041335,1775629855244,-1209.0,0.00024,2]
[420041336,1775629855254,-450.0,0.0002415,2]
[420041337,1775629855265,-162.0,0.00024152,3]
[420041338,1775629855274,-1573.0,0.00024152,3]
[420041339,1775629855285,-500.0,0.00024164,2]
[420041340,1775629855295,-507.5978,0.000242,2]
[420041341,1775629855305,-4713.42618612,0.00024204,120]
[420041342,1775629855315,-1974.12409459,0.00024204,120]
[420041343,1775629855325,-1533.3595463,0.00024204,120]
[420041344,1775629855336,-481.98,0.00024282,2]
[420041345,1775629855346,-150.0,0.000243,30]
[420041346,1775629855356,-3048.461106,0.00024338,14]
[420041347,1775629855366,-3524.0,0.00024368,2]
[420041348,1775629855376,-1046.0,0.00024368,2]
[420041349,1775629855386,-1573.0,0.00024376,3]
[420041350,1775629855395,-2000.0,0.000244,2]
[420041351,1775629855405,-289.486374,0.00024411,14]
[420041352,1775629855414,-746.468471,0.000245,14]
[420041353,1775629855425,-491.249605,0.000245,14]
[420041354,1775629855434,-490.731004,0.000245,14]
[420041355,1775629855445,-504.845754,0.000245,14]
[420041356,1775629855456,-500.57128682,0.0002451,2]
[420041357,1775629855467,-421.23557278,0.0002451,2]
[420041358,1775629855477,-2202.78,0.00024513,2]
[420041359,1775629855486,-1251.66,0.00024583,7]
[420041360,1775629855496,-500.0,0.00024658,2]
[420041361,1775629855506,-500.0,0.00024658,2]
[420041362,1775629855517,-472.0,0.00024658,2]
[420041363,1775629855527,-300.0,0.00024658,2]
[420041364,1775629855537,-300.0,0.00024658,2]
[420041365,1775629855547,-188.0,0.00024658,2]
[420041366,1775629855558,-2000.0,0.00024658,7]
[420041367,1775629855568,-150.0,0.00024658,2]
[420041368,1775629855579,-528.52,0.00024658,2]
[420041369,1775629855589,-180.35,0.00024658,30]
[420041370,1775629855599,-177.67,0.00024658,2]
[420041371,1775629855609,-481.9865117,0.00024673,2]
[420041372,1775629855619,-825.0,0.00024822,60]
[420041373,1775629855629,-500.0,0.00024899,2]
[420041374,1775629855639,-686.05,0.00024899,2]
[420041375,1775629855649,-469498.928204,0.000249,2]
[420041376,1775629855658,-600.555697,0.000249,2]
[420041377,1775629855668,-382.373813,0.000249,2]
[420041378,1775629855679,-354.618069,0.000249,2]
[420041379,1775629855689,-600.555697,0.000249,2]
[420041380,1775629855698,-382.373813,0.000249,2]
[420041381,1775629855708,-151.0,0.000249,2]
[420041382,1775629855717,-354.618069,0.000249,2]
[420041383,1775629855727,-600.555697,0.000249,2]
[420041384,1775629855737,-382.373813,0.000249,2]
[420041385,1775629855748,-151.0,0.000249,2]
[420041386,1775629855757,-151.0,0.000249,2]
[420041387,1775629855767,-151.0,0.000249,2]
[420041388,1775629855776,-354.618069,0.000249,2]
[420041389,1775629855786,-600.555697,0.000249,2]
[420041390,1775629855796,-382.373813,0.000249,2]
[420041391,1775629855806,-666.550951,0.000249,2]
[420041392,1775629855815,-354.618069,0.000249,2]
[420041393,1775629855825,-151.206448,0.000249,2]
[420041394,1775629855835,-666.550951,0.000249,2]
[420041395,1775629855846,-151.0,0.000249,2]
[420041396,1775629855856,-151.0,0.000249,2]
[420041397,1775629855865,-152.058502,0.000249,2]
[420041398,1775629855875,-151.0,0.000249,2]
[420041399,1775629855885,-666.550951,0.000249,2]
[420041400,1775629855895,-1286.374842,0.000249,2]
[420041401,1775629855904,-151.0,0.000249,2]
[420041402,1775629855914,-151.0,0.000249,2]
[420041403,1775629855924,-1298.010302,0.000249,2]
[420041404,1775629855934,-666.550951,0.000249,2]
[420041405,1775629855943,-1286.374842,0.000249,2]
[420041406,1775629855953,-151.0,0.000249,2]
[420041407,1775629855963,-1298.010302,0.000249,2]
[420041408,1775629855973,-1286.374842,0.000249,2]
[420041409,1775629855982,-1298.010302,0.000249,2]
[420041410,1775629855992,-151.0,0.000249,2]
[420041411,1775629856003,-1286.374842,0.000249,2]
[420041412,1775629856013,-1298.010302,0.000249,2]
[420041413,1775629856023,-194.376713,0.000249,2]
[420041414,1775629856033,-162.42237,0.000249,2]
[420041415,1775629856043,-698.076002,0.000249,2]
[420041416,1775629856053,-162.42237,0.000249,2]
[420041417,1775629856063,-698.076002,0.000249,2]
[420041418,1775629856073,-162.42237,0.000249,2]
[420041419,1775629856084,-698.076002,0.000249,2]
[420041420,1775629856094,-151.0,0.000249,2]
[420041421,1775629856105,-162.42237,0.000249,2]
[420041422,1775629856116,-698.076002,0.000249,2]
[420041423,1775629856126,-261.581568,0.000249,2]
[420041424,1775629856136,-151.0,0.000249,2]
[420041425,1775629856147,-151.0,0.000249,2]
[420041426,1775629856158,-151.0,0.000249,2]
[420041427,1775629856168,-151.000002,0.000249,2]
[420041428,1775629856178,-306.332244,0.000249,2]
[420041429,1775629856189,-151.0,0.000249,2]
[420041430,1775629856199,-151.0,0.000249,2]
[420041431,1775629856209,-189.530249,0.000249,2]
[420041432,1775629856219,-372.43938,0.000249,2]
[420041433,1775629856230,-306.332244,0.000249,2]
[420041434,1775629856240,-151.0,0.000249,2]
[420041435,1775629856251,-372.43938,0.000249,2]
[420041436,1775629856261,-306.332244,0.000249,2]
[420041437,1775629856271,-151.0,0.000249,2]
[420041438,1775629856282,-306.332244,0.000249,2]
[420041439,1775629856292,-151.0,0.000249,2]
[420041440,1775629856302,-372.43938,0.000249,2]
[420041441,1775629856312,-372.43938,0.000249,2]
[420041442,1775629856322,-151.0,0.000249,2]
[420041443,1775629856332,-151.0,0.000249,2]
[420041444,1775629856342,-199.009888,0.000249,2]
[420041445,1775629856352,-151.0,0.000249,2]
[420041446,1775629856362,-151.0,0.000249,2]
[420041447,1775629856373,-151.180976,0.000249,2]
[420041448,1775629856382,-151.0,0.000249,2]
[420041449,1775629856392,-151.0,0.000249,2]
[420041450,1775629856402,-3068.460662,0.000249,2]
[420041451,1775629856412,-151.0,0.000249,2]
[420041452,1775629856422,-151.0,0.000249,2]
[420041453,1775629856433,-319.192583,0.000249,2]
[420041454,1775629856443,-3068.460662,0.000249,2]
[420041455,1775629856453,-151.0,0.000249,2]
[420041456,1775629856464,-319.192583,0.000249,2]
[420041457,1775629856474,-3068.460662,0.000249,2]
[420041458,1775629856483,-319.192583,0.000249,2]
[420041459,1775629856493,-155.753542,0.000249,2]
[420041460,1775629856503,-3068.460662,0.000249,2]
[420041461,1775629856513,-150.0,0.00024908,2]
[420041462,1775629856524,-1264.0,0.00024908,2]
[420041463,1775629856533,-926.0,0.00024908,2]
[420041464,1775629856545,-1217.0,0.00024908,2]
[420041465,1775629856555,-832.755644,0.00024932,14]
[420041466,1775629856565,-854.33941891,0.00024968,2]
[420041467,1775629856574,-2002.13136163,0.00025,2]
[420041468,1775629856584,-595.0,0.00025,2]
[420041469,1775629856595,-153.0,0.00025,2]
[420041470,1775629856605,-1037.0,0.00025,2]
[420041471,1775629856615,-4637.0,0.00025,2]
[420041472,1775629856626,-2944.0,0.00025,2]
[420041473,1775629856635,-1151.0,0.00025,2]
[420041474,1775629856645,-830.0,0.00025,2]
[420041475,1775629856654,-160.0,0.00025,3]
[420041476,1775629856663,-160.0,0.00025,3]
[420041477,1775629856798,-1209.0,0.00025,2]
[420041478,1775629856808,-507.0,0.00025046,12]
[420041479,1775629856817,-500.0,0.0002531,2]
[420041480,1775629856827,-500.0,0.00025361,120]
[420041481,1775629856836,-2200.0,0.00025582,7]
[420041482,1775629856845,-1100.0,0.00025582,7]
[420041483,1775629856855,-573.4065,0.000256,2]
[420041484,1775629856864,-480.98475225,0.000257,30]
[420041485,1775629856874,-1573.0,0.00025706,3]
[420041486,1775629856883,-2812.0,0.00025706,3]
[420041487,1775629856894,-2661.929769,0.00025785,14]
[420041488,1775629856903,-162.0,0.000258,3]
[420041489,1775629856913,-150.0,0.0002589,2]
[420041490,1775629856922,-250.0,0.00026,2]
[420041491,1775629856931,-595.0,0.00026,2]
[420041492,1775629856941,-1037.0,0.00026,2]
[420041493,1775629856950,-4637.0,0.00026,2]
[420041494,1775629856959,-2944.0,0.00026,2]
[420041495,1775629856969,-151.0,0.00026,2]
[420041496,1775629856979,-151.0,0.00026,2]
[420041497,1775629856989,-500.303798,0.00026,2]
[420041498,1775629856999,-591.919533,0.00026,2]
[420041499,1775629857009,-151.0,0.00026,2]
[420041500,1775629857019,-500.303798,0.00026,2]
[420041501,1775629857029,-591.919533,0.00026,2]
[420041502,1775629857038,-151.0,0.00026,2]
[420041503,1775629857047,-500.303798,0.00026,2]
[420041504,1775629857057,-591.919533,0.00026,2]
[420041505,1775629857067,-209.655793,0.00026,2]
[420041506,1775629857077,-500.303798,0.00026,2]
[420041507,1775629857086,-591.919533,0.00026,2]
[420041508,1775629857095,-486.879159,0.00026,2]